fUST/lending_fUST_20251013
["ID","MTS","AMOUNT","RATE_DAILY","PERIOD"]
[391101637,1760343041176,-500.0,0.0002664,4]
[391101638,1760343041185,-500.0,0.0002664,4]
[391101639,1760343041200,-511.75660988,0.0002664,4]
[391101640,1760343041216,-703.23,0.0002664,2]
[391101641,1760343041226,-703.23,0.0002664,2]
[391101642,1760343041235,-703.23,0.0002664,2]
[391101643,1760343041245,-703.23,0.0002664,2]
[391101644,1760343041255,-703.23,0.0002664,2]
[391101645,1760343041264,-703.23,0.0002664,2]
[391101646,1760343041273,-703.23,0.0002664,2]
[391101647,1760343041282,-703.23,0.0002664,2]
[391101648,1760343041292,-703.23,0.0002664,2]
[391101649,1760343041301,-703.23,0.0002664,2]
[391101650,1760343041311,-703.23,0.0002664,2]
[391101651,1760343041321,-703.23,0.0002664,2]
[391101652,1760343041330,-703.23,0.0002664,2]
[391101653,1760343041339,-703.23,0.0002664,2]
[391101654,1760343041349,-703.23,0.0002664,2]
[391101655,1760343041358,-703.23,0.0002664,2]
[391101656,1760343041371,-703.23,0.0002664,2]
[391101657,1760343041383,-703.23,0.0002664,2]
[391101658,1760343041393,-703.23,0.0002664,2]
[391101659,1760343041402,-703.23,0.0002664,2]
[391101660,1760343041411,-703.23,0.0002664,2]
[391101661,1760343041420,-703.23,0.0002664,2]
[391101662,1760343041429,-703.23,0.0002664,2]
[391101663,1760343041438,-703.23643876,0.0002664,2]
[391101664,1760343041448,-1393.82,0.0002664,2]
[391101665,1760343041457,-1393.82,0.0002664,2]
[391101666,1760343041466,-1393.82,0.0002664,2]
[391101667,1760343041475,-1393.82,0.0002664,2]
[391101668,1760343041485,-1393.82,0.0002664,2]
[391101669,1760343041494,-1393.82,0.0002664,2]
[391101670,1760343041503,-1393.82,0.0002664,2]
[391101671,1760343041512,-1393.82,0.0002664,2]
[391101672,1760343041522,-1393.82,0.0002664,2]
[391101673,1760343041531,-1393.82,0.0002664,2]
[391101674,1760343041540,-1393.82,0.0002664,2]
[391101675,1760343041549,-1393.82,0.0002664,2]
[391101676,1760343041558,-1393.82,0.0002664,2]
[391101677,1760343041567,-1393.82,0.0002664,2]
[391101678,1760343041576,-1393.82,0.0002664,2]
[391101679,1760343041586,-1393.82,0.0002664,2]
[391101680,1760343041595,-1393.82,0.0002664,2]
[391101681,1760343041604,-1393.82,0.0002664,2]
[391101682,1760343041613,-1393.82,0.0002664,2]
[391101683,1760343041623,-1393.82,0.0002664,2]
[391101684,1760343041632,-1393.82,0.0002664,2]
[391101685,1760343041642,-1393.82,0.0002664,2]
[391101686,1760343041655,-1393.82,0.0002664,2]
[391101687,1760343041664,-1393.87399,0.0002664,2]
[391101688,1760343041674,-500.0,0.00026641,4]
[391101689,1760343041683,-500.0,0.00026641,4]
[391101690,1760343041693,-500.0,0.00026641,4]
[391101691,1760343041703,-500.0,0.00026641,4]
[391101692,1760343041712,-500.0,0.00026641,4]
[391101693,1760343041722,-500.0,0.00026641,4]
[391101694,1760343041731,-500.0,0.00026641,4]
[391101695,1760343041740,-500.0,0.00026641,4]
[391101696,1760343041750,-500.0,0.00026641,4]
[391101697,1760343041759,-500.0,0.00026641,4]
[391101698,1760343041768,-500.0,0.00026641,4]
[391101699,1760343041778,-500.0,0.00026641,4]
[391101700,1760343041787,-500.0,0.00026641,4]
[391101701,1760343041799,-500.0,0.00026641,4]
[391101702,1760343041809,-500.0,0.00026641,4]
[391101703,1760343041818,-500.0,0.00026641,4]
[391101704,1760343041829,-500.0,0.00026641,4]
[391101705,1760343041839,-500.0,0.00026641,4]
[391101706,1760343041849,-500.0,0.00026641,4]
[391101707,1760343041859,-500.0,0.00026641,4]
[391101708,1760343041870,-500.0,0.00026641,4]
[391101709,1760343041881,-500.0,0.00026641,4]
[391101710,1760343041892,-500.0,0.00026641,4]
[391101711,1760343041901,-500.0,0.00026641,4]
[391101712,1760343041911,-501.65106917,0.00026641,4]
[391101713,1760343041921,-503.01295635,0.00026641,4]
[391101714,1760343041932,-501.91085269,0.00026641,4]
[391101715,1760343041942,-500.0,0.00026641,4]
[391101716,1760343041952,-501.43895963,0.00026641,4]
[391101717,1760343041961,-500.0,0.00026641,4]
[391101718,1760343041971,-502.74774597,0.00026641,4]
[391101719,1760343041981,-502.32752128,0.00026641,4]
[391101720,1760343041991,-732.59,0.00026641,4]
[391101721,1760343042000,-732.59,0.00026641,4]
[391101722,1760343042010,-732.59,0.00026641,4]
[391101723,1760343042020,-732.59,0.00026641,4]
[391101724,1760343042030,-732.59,0.00026641,4]
[391101725,1760343042040,-732.59,0.00026641,4]
[391101726,1760343042049,-732.59,0.00026641,4]
[391101727,1760343042059,-732.59,0.00026641,4]
[391101728,1760343042068,-732.59,0.00026641,4]
[391101729,1760343042078,-732.59,0.00026641,4]
[391101730,1760343042088,-732.59,0.00026641,4]
[391101731,1760343042097,-732.59,0.00026641,4]
[391101732,1760343042106,-732.59,0.00026641,4]
[391101733,1760343042115,-732.59,0.00026641,4]
[391101734,1760343042125,-732.59,0.00026641,4]
[391101735,1760343042134,-732.59,0.00026641,4]
[391101736,1760343042144,-732.59,0.00026641,4]
[391101737,1760343042155,-732.59,0.00026641,4]
[391101738,1760343042295,-732.59,0.00026641,4]
[391101739,1760343042305,-732.59,0.00026641,4]
[391101740,1760343042315,-732.59,0.00026641,4]
[391101741,1760343042324,-732.59,0.00026641,4]
[391101742,1760343042333,-732.59,0.00026641,4]
[391101743,1760343042342,-732.70673431,0.00026641,4]
[391101744,1760343042351,-206.52866041,0.00026641,4]
[391101745,1760343042360,-165.613,0.00026642,14]
[391101746,1760343042369,-69275.1679167,0.00026646,2]
[391101747,1760343042379,-267.7284993,0.00026656,4]
[391101748,1760343042388,-656.36,0.00026656,4]
[391101749,1760343042397,-656.36,0.00026656,4]
[391101750,1760343042406,-656.36,0.00026656,4]
[391101751,1760343042415,-656.36,0.00026656,4]
[391101752,1760343042424,-656.36,0.00026656,4]
[391101753,1760343042433,-656.36,0.00026656,4]
[391101754,1760343042442,-656.36,0.00026656,4]
[391101755,1760343042451,-656.36,0.00026656,4]
[391101756,1760343042463,-656.36,0.00026656,4]
[391101757,1760343042472,-656.36,0.00026656,4]
[391101758,1760343042481,-656.36,0.00026656,4]
[391101759,1760343042490,-656.36,0.00026656,4]
[391101760,1760343042499,-656.36,0.00026656,4]
[391101761,1760343042510,-656.36,0.00026656,4]
[391101762,1760343042519,-656.36,0.00026656,4]
[391101763,1760343042529,-656.36,0.00026656,4]
[391101764,1760343042538,-656.36,0.00026656,4]
[391101765,1760343042547,-656.36,0.00026656,4]
[391101766,1760343042558,-656.36,0.00026656,4]
[391101767,1760343042567,-656.36,0.00026656,4]
[391101768,1760343042576,-656.36,0.00026656,4]
[391101769,1760343042586,-656.36,0.00026656,4]
[391101770,1760343042595,-656.36,0.00026656,4]
[391101771,1760343042605,-656.50660955,0.00026656,4]
[391101772,1760343042616,-500.0,0.00026656,4]
[391101773,1760343042626,-500.0,0.00026656,4]
[391101774,1760343042636,-500.0,0.00026656,4]
[391101775,1760343042646,-500.0,0.00026656,4]
[391101776,1760343042655,-500.0,0.00026656,4]
[391101777,1760343042664,-500.0,0.00026656,4]
[391101778,1760343042674,-500.0,0.00026656,4]
[391101779,1760343042684,-500.0,0.00026656,4]
[391101780,1760343042693,-500.0,0.00026656,4]
[391101781,1760343042702,-500.0,0.00026656,4]
[391101782,1760343042712,-372.86763093,0.00026656,4]
[391101783,1760343042721,-500.44273096,0.00026656,2]
[391101784,1760343042731,-500.0,0.00026656,4]
[391101785,1760343042740,-497.6049186,0.00026656,4]
[391101786,1760343042750,-425.92361247,0.00026656,4]
[391101787,1760343042761,-906.64,0.00026656,4]
[391101788,1760343042773,-906.64,0.00026656,4]
[391101789,1760343042783,-906.64,0.00026656,4]
[391101790,1760343042796,-906.64,0.00026656,4]
[391101791,1760343042807,-906.64,0.00026656,4]
[391101792,1760343042817,-906.64,0.00026656,4]
[391101793,1760343042828,-906.64,0.00026656,4]
[391101794,1760343042839,-906.64,0.00026656,4]
[391101795,1760343042850,-906.64,0.00026656,4]
[391101796,1760343042859,-906.64,0.00026656,4]
[391101797,1760343042869,-906.64,0.00026656,4]
[391101798,1760343042880,-906.64,0.00026656,4]
[391101799,1760343042890,-906.64,0.00026656,4]
[391101800,1760343042901,-906.64,0.00026656,4]
[391101801,1760343042911,-906.64,0.00026656,4]
[391101802,1760343042921,-906.64,0.00026656,4]
[391101803,1760343042931,-906.64,0.00026656,4]
[391101804,1760343042940,-906.64,0.00026656,4]
[391101805,1760343042951,-906.64,0.00026656,4]
[391101806,1760343042962,-906.64,0.00026656,4]
[391101807,1760343042971,-906.64,0.00026656,4]
[391101808,1760343042980,-906.64,0.00026656,4]
[391101809,1760343042989,-906.64,0.00026656,4]
[391101810,1760343042998,-906.75568596,0.00026656,4]
[391101811,1760343043007,-520.65353439,0.00026656,4]
[391101812,1760343043017,-500.0,0.00026656,4]
[391101814,1760343043026,-500.0,0.00026656,4]
[391101815,1760343043036,-500.0,0.00026656,4]
[391101817,1760343043045,-500.0,0.00026656,4]
[391101819,1760343043055,-500.0,0.00026656,4]
[391101820,1760343043064,-500.0,0.00026656,4]
[391101822,1760343043073,-500.0,0.00026656,4]
[391101824,1760343043083,-500.0,0.00026656,4]
[391101825,1760343043092,-500.0,0.00026656,4]
[391101826,1760343043101,-500.0,0.00026656,4]
[391101827,1760343043110,-500.0,0.00026656,4]
[391101828,1760343043120,-500.0,0.00026656,4]
[391101829,1760343043129,-500.0,0.00026656,4]
[391101830,1760343043139,-500.0,0.00026656,4]
[391101831,1760343043148,-500.0,0.00026656,4]
[391101832,1760343043158,-500.0,0.00026656,4]
[391101833,1760343043169,-500.0,0.00026656,4]
[391101834,1760343043180,-500.0,0.00026656,4]
[391101835,1760343043190,-500.0,0.00026656,4]
[391101836,1760343043200,-500.0,0.00026656,4]
[391101837,1760343043210,-500.0,0.00026656,4]
[391101838,1760343043220,-500.0,0.00026656,4]
[391101839,1760343043230,-500.0,0.00026656,4]
[391101840,1760343043241,-299.12202203,0.00026656,4]
[391101841,1760343043250,-500.0,0.00026656,4]
[391101842,1760343043260,-262.15150159,0.00026656,4]
[391101843,1760343043269,-500.0,0.00026656,4]
[391101844,1760343043279,-370.43129568,0.00026656,4]
[391101845,1760343043288,-500.0,0.00026656,4]
[391101846,1760343043298,-505.92684642,0.00026656,4]
[391101847,1760343043307,-500.0,0.00026656,4]
[391101848,1760343043316,-500.0,0.00026656,4]
[391101849,1760343043326,-500.0,0.00026656,4]
[391101850,1760343043337,-382.18734195,0.00026656,4]
[391101851,1760343043346,-1004.52794328,0.00026656,2]
[391101852,1760343043356,-614.42651041,0.00026656,4]
[391101853,1760343043366,-500.0,0.00026656,4]
[391101854,1760343043375,-500.0,0.00026656,4]
[391101855,1760343043384,-500.0,0.00026656,4]
[391101856,1760343043393,-500.0,0.00026656,4]
[391101857,1760343043402,-500.0,0.00026656,4]
[391101858,1760343043411,-500.0,0.00026656,4]
[391101859,1760343043421,-500.0,0.00026656,4]
[391101860,1760343043431,-500.0,0.00026656,4]
[391101861,1760343043440,-500.0,0.00026656,4]
[391101862,1760343043450,-500.0,0.00026656,4]
[391101863,1760343043460,-500.0,0.00026656,4]
[391101864,1760343043469,-500.0,0.00026656,4]
[391101865,1760343043478,-500.0,0.00026656,4]
[391101866,1760343043487,-568.36358072,0.00026656,4]
[391101867,1760343043496,-500.0,0.00026656,4]
[391101868,1760343043505,-500.0,0.00026656,4]
[391101869,1760343043514,-500.0,0.00026656,4]
[391101870,1760343043523,-500.0,0.00026656,4]
[391101871,1760343043532,-500.0,0.00026656,4]
[391101872,1760343043542,-500.0,0.00026656,4]
[391101873,1760343043551,-500.0,0.00026656,4]
[391101874,1760343043559,-500.0,0.00026656,4]
[391101875,1760343043568,-500.0,0.00026656,4]
[391101876,1760343043577,-500.0,0.00026656,4]
[391101877,1760343043587,-500.0,0.00026656,4]
[391101878,1760343043595,-500.0,0.00026656,4]
[391101879,1760343043604,-500.0,0.00026656,4]
[391101880,1760343043613,-500.0,0.00026656,4]
[391101881,1760343043623,-396.94407666,0.00026656,4]
[391101882,1760343043631,-500.0,0.00026657,4]
[391101883,1760343043640,-500.0,0.00026657,4]
[391101884,1760343043650,-500.0,0.00026657,4]
[391101885,1760343043659,-483.4033153,0.00026657,4]
[391101886,1760343043669,-503.19017242,0.00026657,2]
[391101887,1760343043679,-503.16830409,0.00026769,2]
[391101888,1760343043690,-507.38417301,0.00026867,2]
[391101889,1760343043700,-500.97899548,0.00027011,2]
[391101890,1760343043711,-300.0,0.00027385,30]
[391101891,1760343043720,-300.0,0.00027385,30]
[391101892,1760343043728,-300.0,0.00027385,30]
[391101893,1760343043738,-300.0,0.00027385,30]
[391101894,1760343043747,-300.0,0.00027385,30]
[391101895,1760343043756,-300.0,0.00027385,30]
[391101896,1760343043765,-300.0,0.00027385,30]
[391101897,1760343043774,-300.0,0.00027385,30]
[391101898,1760343043783,-300.0,0.00027385,30]
[391101899,1760343043793,-300.0,0.00027385,30]
[391101900,1760343043808,-300.0,0.00027385,30]
[391101901,1760343043818,-300.0,0.00027385,30]
[391101902,1760343043827,-300.0,0.00027385,30]
[391101903,1760343043836,-300.0,0.00027385,30]
[391101904,1760343043846,-300.0,0.00027385,30]
[391101905,1760343043856,-250.0,0.00027451,2]
[391101906,1760343043865,-500.0,0.000275,5]
[391101907,1760343043879,-600.0,0.00027526,7]
[391101908,1760343043889,-168.0,0.00027659,7]
[391101909,1760343043899,-168.0,0.00027663,2]
[391101910,1760343043910,-8017.0,0.00027707,2]
[391101911,1760343043920,-981.0,0.00027718,2]
[391101912,1760343043929,-631.0,0.00027718,2]
[391101913,1760343043938,-2160.0,0.00027718,2]
[391101914,1760343043949,-411.0,0.00027718,2]
[391101915,1760343043960,-416.952,0.00027718,2]
[391101916,1760343043969,-160.0,0.00028,3]
[391101917,1760343043978,-168.0,0.00028064,2]
[391101918,1760343043988,-168.0,0.00028068,2]
[391101919,1760343043998,-168.0,0.000282,2]
[391101920,1760343044008,-600.0,0.00028348,7]
[391101921,1760343044018,-153.0,0.00028444,2]
[391101922,1760343044028,-153.0,0.00028444,2]
[391101923,1760343044038,-153.0,0.00028446,2]
[391101924,1760343044048,-160.0,0.000285,2]
[391101925,1760343044057,-168.0,0.00028794,7]
[391101926,1760343044066,-420.0,0.0002881,2]
[391101927,1760343044076,-1611.93023029,0.0002899,2]
[391101928,1760343044132,-7844.4,0.0002899,2]
[391101948,1760343046535,-25181.25372801,0.0002899,2]
[391101949,1760343046545,-6500.0,0.00029,7]
[391101951,1760343046554,-260.0,0.00029048,2]
[391101954,1760343046566,-1377.4464956,0.00029063,2]
[391101955,1760343046576,-600.0,0.0002917,7]
[391101958,1760343046587,-168.0,0.00029173,2]
[391101960,1760343046597,-523.98417731,0.00029333,5]
[391101962,1760343046606,-500.0,0.00029333,3]
[391101964,1760343046616,-504.13409039,0.00029333,5]
[391101966,1760343046627,-268.60955895,0.00029333,5]
[391101968,1760343046636,-168.0,0.00029354,2]
[391101970,1760343046645,-150.0,0.0002937,2]
[391101972,1760343046654,-2826.96403707,0.00029371,2]
[391101974,1760343046663,-168.0,0.00029428,2]
[391101976,1760343046673,-173187.919792,0.00029434,2]
[391101978,1760343046683,-760123.20748072,0.00029444,2]
[391102187,1760343096233,280.626258,0.00013699,2]
[391102188,1760343096428,280.626258,0.00020187,2]
[391102194,1760343888507,-217.0,0.00022493,7]
[391102195,1760343888527,-132.01531281,0.00022493,2]
[391102266,1760344231800,-17.98468719,0.00022493,2]
[391102268,1760344231809,-172.5,0.00023093,2]
[391102270,1760344231818,-88.73560369,0.00023693,2]
[391102307,1760344237656,-151.11653321,0.00023693,2]
[391102308,1760344237666,-440.05506148,0.00025,7]
[391102309,1760344237677,-272.99395076,0.00025781,18]
[391102310,1760344237688,-273.72802647,0.0002643,2]
[391102329,1760344239737,-226.27197353,0.0002643,2]
[391102330,1760344239746,-193.622225,0.00026676,2]
[391102379,1760344316955,171.0,0.00020849,3]
[391102382,1760344717959,480.92723317,0.00021,2]
[391102383,1760344854704,2143.05737483,0.00021,2]
[391102384,1760344994326,150.0,0.00020188,2]
[391102385,1760345049378,2937.78882907,0.00020971,2]
[391102386,1760345238490,-160.0,0.00021,2]
[391102387,1760345238512,-76.25242543,0.00021,2]
[391102388,1760345262272,236.24882055,0.00020971,2]
[391102424,1760345431936,-73.74757457,0.00021,2]
[391102425,1760345431945,-172.5,0.000216,2]
[391102426,1760345431955,-160.0,0.00023,2]
[391102427,1760345431964,-160.67226984,0.000238,2]
[391102428,1760345431974,-110.35324209,0.000238,2]
[391102643,1760345445947,-50.61547437,0.000238,2]
[391102645,1760345445956,-177.90835514,0.000238,2]
[391102646,1760345445965,-160.0,0.00023838,2]
[391102647,1760345445975,-889.3153445,0.00025733,30]
[391102648,1760345445985,-270.0,0.00025781,18]
[391102649,1760345445995,-300.0,0.00026429,2]
[391102660,1760345446120,-300.0,0.00026429,2]
[391102661,1760345446130,-300.0,0.00026429,2]
[391102662,1760345446139,-500.0,0.0002643,2]
[391102663,1760345446149,-150.0,0.00026555,2]
[391102664,1760345446158,-500.0,0.0002656,2]
[391102665,1760345446168,-87.004033,0.00026676,2]
[391102666,1760345446177,-500.0,0.00026875,2]
[391102667,1760345446187,-1104.6521686,0.00026945,2]
[391102668,1760345446197,-207.54952045,0.00027,2]
[391102669,1760345446207,-500.0,0.00027022,2]
[391102670,1760345446215,-505.31686449,0.00027022,2]
[391102671,1760345446225,-500.0,0.00027022,2]
[391102672,1760345446234,-1000.0,0.00027108,2]
[391102673,1760345446244,-500.0,0.00027109,2]
[391102674,1760345446253,-500.0,0.000273,2]
[391102675,1760345446263,-501.27544878,0.00027423,5]
[391102676,1760345446273,-500.0,0.00027526,7]
[391102677,1760345446283,-502.94791059,0.0002757,5]
[391102678,1760345446292,-1006.85177544,0.0002757,5]
[391102679,1760345446302,-500.0,0.00027638,4]
[391102680,1760345446312,-500.0,0.00027638,4]
[391102681,1760345446321,-500.0,0.00027638,4]
[391102682,1760345446331,-500.0,0.00027638,4]
[391102683,1760345446340,-500.0,0.00027638,4]
[391102684,1760345446350,-500.0,0.00027638,4]
[391102685,1760345446359,-228.75210058,0.00027638,4]
[391102686,1760345446368,-500.0,0.00027638,4]
[391102687,1760345446379,-500.0,0.00027638,4]
[391102688,1760345446391,-500.0,0.00027638,4]
[391102689,1760345446403,-500.0,0.00027638,4]
[391102690,1760345446412,-500.0,0.00027638,4]
[391102691,1760345446422,-500.0,0.00027638,4]
[391102692,1760345446431,-500.0,0.00027638,4]
[391102693,1760345446441,-500.0,0.00027638,4]
[391102694,1760345446450,-226.91566686,0.00027638,4]
[391102695,1760345446460,-508.623718,0.00027638,4]
[391102696,1760345446469,-641.85655078,0.00027638,4]
[391102697,1760345446479,-203.33631983,0.00027638,4]
[391102698,1760345446488,-1500.0,0.00027656,5]
[391102699,1760345446497,-1000.0,0.00027657,5]
[391102700,1760345446508,-981.0,0.00027663,2]
[391102701,1760345446519,-2160.0,0.00027663,2]
[391102702,1760345446531,-631.0,0.00027663,2]
[391102703,1760345446541,-500.0,0.000277,5]
[391102704,1760345446552,-1000.0,0.00027848,5]
[391102705,1760345446563,-1500.0,0.00028205,5]
[391102706,1760345446575,-1000.0,0.00028248,5]
[391102707,1760345446584,-500.0,0.00028348,7]
[391102708,1760345446596,-160.0,0.00028352,3]
[391102709,1760345446608,-153.0,0.00028387,2]
[391102710,1760345446618,-153.0,0.00028387,2]
[391102711,1760345446628,-153.0,0.00028388,2]
[391102712,1760345446640,-503.00844896,0.00028396,5]
[391102713,1760345446649,-420.0,0.0002859,2]
[391102714,1760345446659,-2049.25944729,0.00028753,5]
[391102715,1760345446668,-1500.0,0.00028796,5]
[391102716,1760345446678,-281.32,0.00028868,2]
[391102717,1760345446688,-181.96684149,0.00029061,2]
[391102718,1760345446697,-298.95852835,0.00029061,2]
[391102719,1760345446707,-168.0,0.00029099,2]
[391102720,1760345446716,-159.659,0.00029099,21]
[391102721,1760345446726,-784.56,0.00029214,3]
[391102722,1760345446735,-145893.489139,0.00029224,2]
[391102723,1760345446745,-370000.0,0.00029234,2]
[391102724,1760345446754,-500.0,0.00029236,5]
[391102725,1760345446763,-20841.9270198,0.00029263,2]
[391102726,1760345446774,-150.0,0.00029273,5]
[391102727,1760345446784,-504.31806574,0.00029273,5]
[391102728,1760345446793,-500.0,0.00029273,5]
[391102729,1760345446803,-500.0,0.00029333,4]
[391102730,1760345446812,-645.62650246,0.00029333,4]
[391102731,1760345446822,-432.25765304,0.00029333,4]
[391102732,1760345446831,-5000.0,0.00029342,30]
[391102733,1760345446840,-637.98732955,0.00029344,5]
[391102734,1760345446851,-500.0,0.00029373,5]
[391102735,1760345446860,-502.73109998,0.00029373,5]
[391102736,1760345446869,-62525.7810594,0.00029434,2]
[391102737,1760345446878,-152.962766,0.00029444,30]
[391102738,1760345446887,-245172.1848,0.00029444,2]
[391102739,1760345446896,-151.0,0.00029444,15]
[391102740,1760345446907,-168.0,0.00029471,2]
[391102741,1760345446916,-500.0,0.00029473,4]
[391102742,1760345446925,-638.26721569,0.00029473,5]
[391102743,1760345446936,-500.0,0.00029473,5]
[391102744,1760345446946,-500.0,0.00029473,3]
[391102745,1760345446956,-22512.9,0.000295,7]
[391102746,1760345446965,-1233.14,0.000295,2]
[391102747,1760345446974,-3726.22,0.000295,2]
[391102748,1760345446985,-225.76650587,0.00029559,2]
[391102749,1760345446994,-999.0,0.00029559,2]
[391102750,1760345447003,-999.0,0.00029559,2]
[391102751,1760345447012,-95000.0,0.0002956,2]
[391102752,1760345447021,-168.0,0.00029583,2]
[391102753,1760345447031,-168.0,0.00029584,2]
[391102754,1760345447040,-174.83,0.00029637,2]
[391102755,1760345447050,-168.0,0.00029686,2]
[391102756,1760345447060,-168.0,0.00029719,2]
[391102757,1760345447070,-1000.0,0.00029784,5]
[391102758,1760345447080,-968.31,0.000298,30]
[391102759,1760345447089,-1000.0,0.00029821,5]
[391102760,1760345447099,-999.0,0.00029833,4]
[391102761,1760345447109,-199.0,0.0002992,25]
[391102762,1760345447120,-345.97187463,0.00029921,5]
[391102763,1760345447131,-500.0,0.00029992,7]
[391102764,1760345447140,-706040.22589449,0.0003,7]
[391102774,1760345718483,-184.08815326,0.000238,2]
[391102775,1760345718507,-150.0,0.000238,2]
[391102776,1760345718531,-184.08815326,0.000241,2]
[391102777,1760345718562,-153.90760721,0.000244,2]
[391102778,1760345720718,-18.59239279,0.000244,2]
[391102779,1760345720744,-195.0,0.00025,2]
[391102780,1760345720767,-86.44835964,0.000256,2]
[391102781,1760345723844,-131.05164036,0.000256,2]
[391102782,1760345748472,-310.27732706,0.00024953,2]
[391102783,1760345751009,-202.52253902,0.00024953,2]
[391102784,1760345756431,-205.04921337,0.00024953,2]
[391102785,1760345759200,-330.01073945,0.00024953,2]
[391102786,1760345764379,-120.08346422,0.00024953,2]
[391102787,1760345779099,-432.72455755,0.00024953,2]
[391102788,1760345781471,-145.02399513,0.00024953,2]
[391102789,1760345795538,-240.11424783,0.00024703,2]
[391102790,1760345797149,-64.95596071,0.00024703,2]
[391102791,1760345797172,-190.55902616,0.00024953,2]
[391102792,1760345799874,-244.48501313,0.00024953,2]
[391102793,1760345801602,-156.85554625,0.00024953,2]
[391102794,1760345884658,-1041.99378921,0.00024703,2]
[391102795,1760345884681,-61.18251731,0.00024953,2]
[391102796,1760345898420,-150.0,0.00026621,2]
[391102797,1760345913451,-500.0,0.00026986,2]
[391102798,1760345913472,-238.4800587,0.00027123,14]
[391102799,1760345921469,-441.60937542,0.00027123,14]
[391102800,1760345923712,-151.0,0.00027123,14]
[391102801,1760345926262,-300.0,0.00024953,2]
[391102808,1760346407025,238.532319,0.00013699,2]
[391102809,1760346407238,238.532319,0.00020187,2]
[391102848,1760346561337,151.0,7.5e-07,2]
[391102876,1760346562436,151.0,7.5e-07,2]
[391102924,1760346564082,151.0,7.5e-07,2]
[391102930,1760346565135,151.0,7.5e-07,2]
[391102934,1760346566196,151.0,7.5e-07,2]
[391102938,1760346567287,151.0,7.5e-07,2]
[391102949,1760346604446,167.736186,0.00013106,2]
[391102988,1760346631994,-2584.26574064,0.00024211,2]
[391102989,1760346632004,-200.0,0.00024953,2]
[391102990,1760346632014,-150.0,0.00026602,2]
[391102991,1760346632023,-238.532319,0.00026676,2]
[391102992,1760346632033,-177.20194036,0.00026986,2]
[391102993,1760346632047,-322.79805964,0.00026986,2]
[391102994,1760346632056,-300.0,0.00027266,2]
[391102995,1760346632067,-588.57997496,0.00027267,2]
[391102996,1760346632079,-2284.5,0.00027267,2]
[391103005,1760346638047,-361.57439764,0.00027267,2]
[391103006,1760346638058,-626.41221792,0.00027267,2]
[391103007,1760346638070,-920.0,0.00027267,2]
[391103013,1760346640246,-3e-08,0.00027267,2]
[391103036,1760346877591,150.0,0.00019978,2]
[391103037,1760346879171,174.917,0.0002,2]
[391103038,1760346959287,150.0,0.00019748,2]
[391103039,1760347043608,150.0,0.00019764,2]
[391103040,1760347124071,150.0,0.00019764,2]
[391103041,1760347204264,150.0,0.00019774,2]
[391103042,1760347269649,5000.0,0.00020971,2]
[391103043,1760347277578,3907.356814,0.00020971,2]
[391103044,1760347277600,1092.643186,0.00020971,2]
[391103045,1760347280839,300.0,0.000198,2]